bitfinex-derivatives/quotes_SOLF0:USTF0_20260305
["timestamp","ask_amount","ask_price","bid_price","bid_amount"]
[1772690819468,2.85027717,89.93,89.883,3.70130797]
[1772690820569,3.70398836,89.939,89.891,3.70130797]
[1772690821867,3.69407215,89.929,89.877,3.70130797]
[1772690822068,2.85027717,89.92,89.877,3.70130797]
[1772690822267,10.006,89.919,89.877,3.70130797]
[1772690823082,10.007,89.911,89.861,3.70130797]
[1772690823773,3.68851604,89.915,89.861,3.70130797]
[1772690823774,3.68851604,89.908,89.861,3.70130797]
[1772690825368,10.008,89.904,89.861,3.70130797]
[1772690825973,3.7045387,89.904,89.845,3.70130797]
[1772690826177,2.85027717,89.9,89.85,2.85027717]
[1772690826478,3.7045387,89.903,89.851,3.70130797]
[1772690826677,3.7045387,89.903,89.86,2.85027717]
[1772690827177,3.74961612,89.918,89.861,3.70130797]
[1772690828476,10.007,89.909,89.87,2.84988949]
[1772690829078,10.007,89.909,89.861,3.70130797]
[1772690830473,3.8258075,89.908,89.861,3.70130797]
[1772690830679,3.8258075,89.899,89.85,2.84988949]
[1772690831276,10.009,89.894,89.85,2.84988949]
[1772690831479,2.84988949,89.89,89.84,2.84988949]
[1772690831676,3.83005275,89.889,89.84,2.84988949]
[1772690831877,3.83005275,89.889,89.841,3.70130797]
[1772690832076,3.83005275,89.904,89.85,2.84988949]
[1772690832273,2.84988949,89.9,89.85,2.84988949]
[1772690832576,3.83005275,89.899,89.85,2.84988949]
[1772690832972,3.83005275,89.899,89.86,2.84988949]
[1772690833178,3.83005275,89.899,89.851,3.70130797]
[1772690833575,3.83005275,89.899,89.86,2.84988949]
[1772690834276,10.008,89.904,89.86,2.84988949]
[1772690834582,97.0,89.913,89.87,2.84988949]
[1772690834980,10.007,89.912,89.87,2.84988949]
[1772690835375,97.0,89.913,89.87,2.84988949]
[1772690835680,3.81968343,89.912,89.86,2.84988949]
[1772690836881,10.008,89.902,89.86,2.84988949]
[1772690837480,10.008,89.902,89.86,6.55119746]
[1772690838176,3.81968343,89.912,89.861,3.70130797]
[1772690838374,3.84453728,89.927,89.88,2.84988949]
[1772690839181,10.006,89.92,89.88,6.66631187]
[1772690839382,8.63753306,89.951,89.88,6.66631187]
[1772690839383,2.84988949,89.94,89.881,3.81642238]
[1772690839582,4.03327299,89.939,89.881,3.81642238]
[1772690840079,14.03727299,89.939,89.891,3.81642238]
[1772690840787,4.03327299,89.929,89.88,2.84988949]
[1772690841286,4.03327299,89.929,89.89,2.84988949]
[1772690841488,4.03327299,89.949,89.891,3.81642238]
[1772690841982,4.03327299,89.949,89.9,2.84988949]
[1772690842183,4.03327299,89.949,89.891,3.81642238]
[1772690842373,4.03327299,89.949,89.901,3.81642238]
[1772690842579,4.03327299,89.939,89.89,2.84988949]
[1772690843086,6.88316248,89.93,89.883,3.81642238]
[1772690843282,4.03327299,89.929,89.883,3.81642238]
[1772690844476,4.03327299,89.929,89.885,3.81642238]
[1772690845084,2.84988949,89.94,89.885,3.81642238]
[1772690845286,2.84988949,89.94,89.892,3.81642238]
[1772690845487,4.03327299,89.944,89.892,3.81642238]
[1772690845785,2.84988949,89.94,89.892,3.81642238]
[1772690846180,4.03327299,89.939,89.892,3.81642238]
[1772690846387,4.03327299,89.939,89.88,2.84988949]
[1772690846584,4.03327299,89.939,89.88,6.66631187]
[1772690847486,3.90487431,89.929,89.87,2.84988949]
[1772690849288,3.84341917,89.927,89.87,2.84988949]
[1772690849484,3.84341917,89.927,89.872,3.98263358]
[1772690850184,3.84341917,89.927,89.87,2.84988949]
[1772690850185,10.005,89.926,89.873,13.99363358]
[1772690851687,10.005,89.926,89.874,3.98263358]
[1772690852580,3.84341917,89.927,89.874,3.98263358]
[1772690852786,3.84341917,89.927,89.88,2.84988949]
[1772690852985,3.84341917,89.927,89.881,3.98263358]
[1772690854985,3.78767092,89.925,89.868,10.012]
[1772690855187,3.78767092,89.919,89.868,10.012]
[1772690856692,3.78767092,89.919,89.875,10.011]
[1772690856892,3.78767092,89.919,89.875,13.99363358]
[1772690857090,97.0,89.929,89.876,3.98263358]
[1772690857294,97.0,89.929,89.88,6.83252307]
[1772690857493,97.0,89.929,89.881,3.98263358]
[1772690858486,97.0,89.929,89.889,3.98263358]
[1772690858691,97.0,89.929,89.891,3.98263358]
[1772690858992,97.0,89.939,89.891,3.98263358]
[1772690859897,100.86876441,89.939,89.891,3.98263358]
[1772690860088,3.86876441,89.938,89.891,3.98263358]
[1772690861291,3.86876441,89.938,89.846,20.029]
[1772690861292,97.0,89.939,89.903,3.98263358]
[1772690861796,97.0,89.939,89.887,3.98263358]
[1772690861797,3.86592191,89.938,89.887,3.98263358]
[1772690862097,3.86592191,89.938,89.89,2.84988949]
[1772690862498,3.86592191,89.938,89.891,10.009]
[1772690862698,3.86592191,89.938,89.892,3.98263358]
[1772690863195,97.0,89.939,89.892,3.98263358]
[1772690863395,97.0,89.939,89.9,2.84988949]
[1772690863998,3.94271267,89.954,89.9,2.84988949]
[1772690863999,3.94271267,89.954,89.901,3.98263358]
[1772690864498,3.94271267,89.954,89.91,2.84988949]
[1772690864700,10.002,89.953,89.91,2.84988949]
[1772690865095,10.002,89.953,89.902,3.98263358]
[1772690866192,10.001,89.962,89.911,3.98263358]
[1772690866391,3.88812842,89.967,89.92,6.83252307]
[1772690866592,3.88812842,89.959,89.903,3.98263358]
[1772690866791,8.6491189,89.978,89.903,3.98263358]
[1772690866792,6.73756707,89.95,89.903,3.98263358]
[1772690867501,3.88767758,89.949,89.903,3.98263358]
[1772690867897,3.88767758,89.949,89.905,10.008]
[1772690868197,3.88767758,89.949,89.906,3.98263358]
[1772690870793,2.84988949,89.96,89.91,2.84988949]
[1772690871098,2.84988949,89.96,89.911,3.7531338]
[1772690871702,13.71012335,89.957,89.911,3.7531338]
[1772690872002,3.70812335,89.956,89.903,10.008]
[1772690872302,3.70812335,89.956,89.904,3.7531338]
[1772690872500,8.64262677,89.978,89.852,27.38529236]
[1772690872501,13.70812335,89.969,89.914,3.7531338]
[1772690872798,3.70812335,89.967,89.914,3.7531338]
[1772690874100,2.84988949,89.96,89.914,3.7531338]
[1772690874499,2.84988949,89.96,89.917,10.006]
[1772690875198,2.84988949,89.95,89.914,3.7531338]
[1772690876502,3.70812335,89.958,89.914,3.7531338]
[1772690878104,10.002,89.957,89.914,3.7531338]
[1772690879004,2.84988949,89.98,89.925,10.005]
[1772690879201,2.84988949,89.98,89.855,27.38529236]
[1772690879202,4.34767961,89.989,89.93,2.84988949]
[1772690879400,7.1975691,89.98,89.92,2.84988949]
[1772690879603,9.999,89.979,89.93,10.005]
[1772690880098,9.999,89.979,89.93,12.85488949]
[1772690880300,14.34667961,89.979,89.93,12.85488949]
[1772690881001,10.0,89.97,89.92,12.85588949]
[1772690881499,10.0,89.97,89.93,2.84988949]
[1772690881698,9.999,89.978,89.93,2.84988949]
[1772690882702,9.999,89.978,89.932,10.005]
[1772690883104,4.34767961,89.979,89.932,10.005]
[1772690886504,4.34767961,89.979,89.922,10.006]
[1772690886705,2.84988949,89.97,89.922,10.006]
[1772690886905,4.28681134,89.969,89.91,2.84988949]
[1772690887105,97.0,89.987,89.866,20.024]
[1772690887106,2.84988949,89.95,89.9,2.84988949]
[1772690887806,4.28681134,89.959,89.913,10.007]
[1772690888111,4.28681134,89.959,89.91,2.84988949]
[1772690888507,4.28681134,89.959,89.917,10.006]
[1772690891818,97.0,89.987,89.871,20.023]
[1772690891819,4.28626185,89.949,89.9,2.84691554]
[1772690893512,4.28626185,89.949,89.914,10.006]
[1772690901127,4.28626185,89.949,89.89,2.84691554]
[1772690901323,4.36661331,89.939,89.88,2.84691554]
[1772690901536,4.36661331,89.929,89.88,2.84691554]
[1772690902128,4.36661331,89.929,89.89,10.009]
[1772690902327,4.36661331,89.929,89.849,20.028]
[1772690902328,4.36661331,89.929,89.87,2.84691554]
[1772690902729,4.36661331,89.919,89.87,2.84691554]
[1772690903526,4.36661331,89.919,89.881,10.01]
[1772690905833,4.36661331,89.919,89.87,2.84691554]
[1772690906926,4.35494869,89.899,89.85,2.84691554]
[1772690907529,4.35494869,89.889,89.846,10.015]
[1772690907934,10.23017867,89.936,89.786,27.61712322]
[1772690907935,4.35494869,89.879,89.83,2.84691554]
[1772690908436,4.35494869,89.869,89.81,2.84691554]
[1772690908633,4.35494869,89.869,89.82,2.84691554]
[1772690909233,4.38932838,89.859,89.81,2.84691554]
[1772690910133,4.38932838,89.859,89.811,10.019]
[1772690911034,4.38932838,89.859,89.81,2.84691554]
[1772690911035,4.37219856,89.849,89.765,177.84]
[1772690911231,4.37219856,89.849,89.713,34.14099325]
[1772690911232,7.2191141,89.82,89.77,2.84691554]
[1772690911935,7.2191141,89.82,89.772,10.023]
[1772690912132,4.37219856,89.819,89.772,10.023]
[1772690912836,4.37219856,89.819,89.72,20.059]
[1772690912837,2.84691554,89.81,89.76,2.84691554]
[1772690913035,4.37219856,89.819,89.77,2.84691554]
[1772690913236,4.37219856,89.819,89.76,2.84691554]
[1772690913438,4.15127326,89.809,89.75,2.84691554]
[1772690914037,4.15127326,89.809,89.752,10.026]
[1772690914443,4.15127326,89.799,89.752,10.026]
[1772690914640,2.84691554,89.81,89.764,10.024]
[1772690914835,2.84691554,89.82,89.709,156.036]
[1772690915041,4.15127326,89.824,89.77,2.84691554]
[1772690915235,6.95359438,89.84,89.79,2.84691554]
[1772690915436,2.84691554,89.85,89.8,2.84691554]
[1772690915638,2.84691554,89.84,89.79,2.84691554]
[1772690915950,4.10667884,89.839,89.791,10.021]
[1772690916743,4.10667884,89.839,89.79,2.84691554]
[1772690917749,4.10293033,89.857,89.8,2.84691554]
[1772690917953,4.10293033,89.857,89.81,2.84691554]
[1772690918151,4.10293033,89.857,89.74,20.054]
[1772690918351,4.10293033,89.857,89.8,2.84691554]
[1772690918352,2.84691554,89.85,89.8,2.84691554]
[1772690918553,4.10293033,89.849,89.8,2.84691554]
[1772690918754,4.10293033,89.849,89.74,20.054]
[1772690918755,2.84691554,89.84,89.79,2.84691554]
[1772690919052,4.10834017,89.839,89.79,2.84691554]
[1772690919249,2.84691554,89.82,89.77,2.84691554]
[1772690919752,6.95525571,89.82,89.77,2.84691554]
[1772690919956,8.4990899,89.895,89.76,2.84691554]
[1772690919957,2.84691554,89.81,89.76,2.84691554]
[1772690920255,4.10834017,89.809,89.76,2.84691554]
[1772690920553,4.10834017,89.809,89.761,10.025]
[1772690920753,4.10834017,89.809,89.77,2.84691554]
[1772690921349,4.10834017,89.809,89.77,12.87091554]
[1772690921850,4.10834017,89.809,89.767,10.024]
[1772690922046,4.10834017,89.809,89.77,2.84691554]
[1772690922253,4.14220103,89.829,89.77,2.84691554]
[1772690922650,4.1137501,89.827,89.77,2.84691554]
[1772690922854,4.1137501,89.819,89.77,2.84691554]
[1772690923854,4.1137501,89.819,89.774,10.023]
[1772690924050,4.1137501,89.835,89.78,2.84691554]
[1772690924358,4.1137501,89.835,89.707,1.9381464]
[1772690924359,4.1137501,89.835,89.791,10.021]
[1772690924959,2.84691554,89.85,89.8,2.84691554]
[1772690925155,4.11384313,89.853,89.81,2.84691554]
[1772690927356,4.11384313,89.853,89.801,10.02]
[1772690928159,2.84691554,89.85,89.801,10.02]
[1772690928462,4.05462283,89.849,89.8,2.84691554]
[1772690928759,4.05462283,89.839,89.791,10.021]
[1772690929160,20.018,89.905,89.78,2.84691554]
[1772690929161,4.05488598,89.829,89.782,10.022]
[1772690929356,4.05488598,89.819,89.77,2.84691554]
[1772690929564,4.05488598,89.819,89.76,2.84691554]
[1772690929758,2.84691554,89.81,89.768,10.024]
[1772690929963,4.05488598,89.809,89.768,10.024]
[1772690930158,4.05488598,89.809,89.76,2.84691554]
[1772690931056,4.05488598,89.809,89.75,2.84691554]
[1772690931766,4.0394263,89.807,89.76,2.84691554]
[1772690932061,4.0394263,89.799,89.738,10.027]
[1772690932362,4.0394263,89.799,89.76,2.84691554]
[1772690932559,4.0394263,89.818,89.77,2.84691554]
[1772690933466,4.0394263,89.818,89.78,2.84691554]
[1772690933858,10.017,89.834,89.79,2.84691554]
[1772690934060,4.03585931,89.809,89.76,2.84691554]
[1772690934367,2.84691554,89.82,89.693,1.93848108]
[1772690934368,2.84691554,89.82,89.77,2.84691554]
[1772690934767,10.018,89.818,89.78,2.84691554]
[1772690935158,10.019,89.812,89.77,2.84691554]
[1772690936064,10.019,89.812,89.78,2.84691554]
[1772690936358,14.13062443,89.812,89.77,2.84691554]
[1772690936668,4.11162443,89.799,89.75,2.84691554]
[1772690937259,4.11162443,89.799,89.76,2.84691554]
[1772690938161,14.14591712,89.819,89.696,156.058]
[1772690938366,4.12791712,89.819,89.78,2.84691554]
[1772690940561,4.12791712,89.819,89.773,10.023]
[1772690940766,4.12791712,89.819,89.78,2.84691554]
[1772690941766,10.018,89.817,89.78,2.84691554]
[1772690941960,10.018,89.817,89.77,2.84691554]
[1772690942566,10.018,89.817,89.762,10.024]
[1772690944672,10.018,89.817,89.771,10.023]
[1772690945470,10.018,89.817,89.763,10.024]
[1772690946572,10.018,89.817,89.771,10.023]
[1772690946767,4.15049676,89.824,89.771,10.023]
[1772690946967,4.15049676,89.824,89.75,7.64926103]
[1772690947475,4.15049676,89.824,89.761,10.025]
[1772690947669,4.15049676,89.824,89.75,7.64926103]
[1772690948071,10.019,89.815,89.758,10.025]
[1772690948270,4.15049676,89.824,89.758,10.025]
[1772690948773,4.15049676,89.824,89.75,7.64926103]
[1772690949174,4.15746803,89.822,89.75,7.64926103]
[1772690949374,4.15746803,89.822,89.73,7.64926103]
[1772690949571,4.15746803,89.82,89.73,7.64926103]
[1772690950271,4.15746803,89.82,89.71,7.64926103]
[1772690950272,4.15746803,89.784,89.71,7.64926103]
[1772690950475,4.15746803,89.784,89.71,7.65562221]
[1772690950675,4.14047698,89.817,89.73,7.65562221]
[1772690950874,4.14047698,89.828,89.73,7.65562221]
[1772690951479,7.65562221,89.83,89.73,7.65562221]
[1772690951480,10.02,89.803,89.73,7.65562221]
[1772690951678,4.14047698,89.802,89.73,7.65562221]
[1772690952174,10.021,89.797,89.735,10.027]
[1772690952379,4.14047698,89.796,89.735,10.027]
[1772690952582,7.65562221,89.83,89.73,7.65562221]
[1772690952583,10.02,89.803,89.73,7.65562221]
[1772690952874,4.14047698,89.812,89.75,7.65562221]
[1772690953080,10.022,89.788,89.735,10.027]
[1772690953681,10.022,89.785,89.735,10.027]
[1772690953982,4.15718163,89.787,89.722,10.029]
[1772690954581,10.024,89.769,89.712,10.03]
[1772690954879,4.14577779,89.768,89.712,10.03]
[1772690955172,7.65562221,89.81,89.72,10.029]
[1772690955173,10.023,89.774,89.72,10.029]
[1772690955378,4.14577779,89.804,89.71,7.65562221]
[1772690955579,4.14577779,89.804,89.73,7.65562221]
[1772690955980,4.14577779,89.802,89.71,7.65562221]
[1772690956180,4.14577779,89.8,89.71,7.65562221]
[1772690957478,10.023,89.778,89.721,10.029]
[1772690958580,10.022,89.787,89.71,7.65562221]
[1772690958880,4.17985932,89.799,89.73,7.65562221]
[1772690959382,10.022,89.789,89.737,10.027]
[1772690959581,4.17985932,89.799,89.73,7.65562221]
[1772690959981,10.021,89.79,89.74,10.027]
[1772690960181,4.17985932,89.799,89.73,7.65562221]
[1772690960484,4.15682331,89.814,89.73,7.65562221]
[1772690961384,10.02,89.802,89.749,10.026]
[1772690962284,10.021,89.794,89.741,10.027]
[1772690963181,4.15682331,89.814,89.75,7.65562221]
[1772690963386,4.15682331,89.814,89.74,7.65562221]
[1772690964487,10.021,89.796,89.76,2.85664757]
[1772690965481,2.85664757,89.81,89.76,2.85664757]
[1772690965990,7.1414033,89.81,89.76,2.85664757]
[1772690966192,4.28475573,89.809,89.76,2.85664757]
[1772690966390,10.02,89.805,89.77,2.85664757]
[1772690968490,10.019,89.815,89.77,2.85664757]
[1772690968691,10.019,89.815,89.763,10.024]
[1772690968692,10.019,89.815,89.78,2.85664757]
[1772690968892,4.28630003,89.823,89.78,2.85664757]
[1772690969089,2.85664757,89.82,89.77,2.85664757]
[1772690969292,4.31045839,89.819,89.76,2.85664757]
[1772690969892,10.022,89.787,89.75,2.85664757]
[1772690970285,10.022,89.787,89.735,10.027]
[1772690970489,10.022,89.787,89.75,2.85664757]
[1772690970795,4.33214939,89.789,89.74,2.85664757]
[1772690971393,4.33214939,89.779,89.72,2.85664757]
[1772690971593,4.33214939,89.779,89.73,2.85664757]
[1772690971896,10.024,89.765,89.73,2.85664757]
[1772690972093,10.024,89.765,89.72,2.85664757]
[1772690972295,4.33214939,89.779,89.72,2.85664757]
[1772690972591,4.33214939,89.779,89.73,2.85664757]
[1772690972799,10.026,89.75,89.72,2.85664757]
[1772690974796,10.025,89.759,89.72,2.85664757]
[1772690975394,10.026,89.751,89.72,2.85664757]
[1772690976201,10.026,89.751,89.71,2.85664757]
[1772690976393,10.026,89.751,89.72,2.85664757]
[1772690977189,4.32169328,89.789,89.73,2.85664757]
[1772690977498,4.32169328,89.779,89.73,2.85664757]
[1772690977697,10.025,89.762,89.73,0.00064757]
[1772690977900,10.025,89.762,89.72,2.85664757]
[1772690978096,10.025,89.762,89.702,10.031]
[1772690978297,4.32169328,89.749,89.667,27.61712322]
[1772690978499,4.32169328,89.729,89.638,27.61712322]
[1772690978695,4.31434508,89.747,89.7,0.00064757]
[1772690978999,4.31434508,89.747,89.71,0.00064757]
[1772690979202,4.31434508,89.747,89.7,2.85664757]
[1772690979399,4.31434508,89.747,89.643,1.93976689]
[1772690979400,4.31434508,89.747,89.72,0.00064757]
[1772690979696,4.31434508,89.747,89.7,2.85664757]
[1772690979895,4.31434508,89.744,89.7,2.85664757]
[1772690980792,4.31434508,89.744,89.643,1.93976689]
[1772690980793,10.025,89.755,89.71,2.85664757]
[1772690980999,4.19830574,89.775,89.73,2.85664757]
[1772690981198,4.19830574,89.775,89.74,0.00064757]
[1772690981398,4.19830574,89.775,89.72,2.85664757]
[1772690982396,4.19830574,89.773,89.72,2.85664757]
[1772690982594,4.19830574,89.769,89.66,27.61712322]
[1772690982792,4.19830574,89.769,89.72,2.85664757]
[1772690983900,4.22419643,89.759,89.71,2.85664757]
[1772690984102,4.22419643,89.754,89.7,2.85664757]
[1772690984702,4.22419643,89.754,89.71,2.85664757]
[1772690985002,4.22419643,89.754,89.7,2.85664757]
[1772690985197,4.19778432,89.771,89.73,2.85664757]
[1772690985799,4.19778432,89.771,89.74,2.85664757]
[1772690986103,4.19778432,89.789,89.74,2.85664757]
[1772690986301,10.023,89.774,89.74,2.85664757]
[1772690987001,4.17077173,89.785,89.74,2.85664757]
[1772690987201,4.17077173,89.785,89.718,10.029]
[1772690987401,4.17077173,89.785,89.74,2.85664757]
[1772690987809,4.17077173,89.771,89.73,2.85664757]
[1772690988507,4.17077173,89.771,89.74,2.85664757]
[1772690988915,10.022,89.784,89.74,2.85664757]
[1772690989110,4.21285904,89.787,89.75,2.85664757]
[1772690990211,4.21285904,89.784,89.74,2.85664757]
[1772690990916,2.85664757,89.78,89.73,2.85664757]
[1772690991112,4.20281245,89.783,89.74,2.85664757]
[1772690992607,4.20281245,89.783,89.721,10.029]
[1772690993720,10.022,89.782,89.721,10.029]
[1772690995015,4.23000219,89.781,89.72,7.65451184]
[1772690995912,14.25400219,89.765,89.712,10.03]
[1772690996108,4.23000219,89.764,89.701,10.031]
[1772690997515,10.025,89.757,89.701,10.031]
[1772691000821,14.28025599,89.757,89.701,10.031]
[1772691001020,10.025,89.754,89.701,10.031]
[1772691001221,4.25525599,89.756,89.709,10.03]
[1772691002318,4.25525599,89.755,89.7,17.68551184]
[1772691003025,4.2571249,89.752,89.7,17.68551184]
[1772691003729,4.2571249,89.749,89.7,17.68551184]
[1772691004224,4.2571249,89.729,89.68,7.65451184]
[1772691005020,10.027,89.738,89.68,7.65451184]
[1772691005321,4.26275154,89.744,89.68,7.65451184]
[1772691005518,4.26275154,89.777,89.7,7.65451184]
[1772691006528,4.26275154,89.764,89.713,10.03]
[1772691006826,4.26275154,89.764,89.7,7.65451184]
[1772691007123,10.024,89.771,89.72,10.029]
[1772691007325,10.024,89.771,89.72,17.68351184]
[1772691008523,10.024,89.771,89.674,27.61712322]
[1772691008524,4.25093461,89.766,89.7,7.65451184]
[1772691009222,10.023,89.777,89.72,7.65451184]
[1772691009423,4.21013022,89.781,89.72,7.65451184]
[1772691009725,10.023,89.78,89.732,10.028]
[1772691009928,4.21013022,89.779,89.72,7.65451184]
[1772691010426,4.21013022,89.779,89.7,7.65451184]
[1772691010721,4.21013022,89.779,89.7,7.6570679]
[1772691011525,4.22326515,89.775,89.713,10.03]
[1772691011822,4.22326515,89.775,89.68,20.068]
[1772691011823,4.22326515,89.775,89.72,7.6570679]
[1772691012130,4.22326515,89.775,89.661,156.118]
[1772691012131,4.22326515,89.773,89.7,7.6570679]
[1772691012628,4.22326515,89.763,89.705,10.031]
[1772691013523,4.23223043,89.751,89.7,7.6570679]
[1772691014125,4.23223043,89.751,89.703,10.031]
[1772691014326,4.23223043,89.748,89.7,7.6570679]
[1772691014527,4.23223043,89.739,89.69,2.86083957]
[1772691015329,4.23001762,89.736,89.69,2.86083957]
[1772691016029,4.23001762,89.732,89.69,2.86083957]
[1772691016628,4.23001762,89.729,89.69,2.86083957]
[1772691016829,4.23001762,89.729,89.672,10.034]
[1772691016830,4.23001762,89.729,89.68,2.86083957]
[1772691018124,4.23001762,89.729,89.672,10.034]
[1772691018324,4.23001762,89.729,89.68,2.86083957]
[1772691018823,4.23001762,89.729,89.67,2.86083957]
[1772691019526,4.19305938,89.717,89.67,2.86083957]
[1772691019926,4.19305938,89.717,89.663,10.036]
[1772691020129,4.19305938,89.712,89.67,2.86083957]
[1772691024731,4.1008576,89.703,89.613,293.0]
[1772691024936,4.09360855,89.719,89.67,2.86083957]
[1772691025235,4.09360855,89.719,89.68,2.86083957]
[1772691025636,4.09360855,89.719,89.613,1.94031307]
[1772691025637,4.09360855,89.719,89.69,2.86083957]
[1772691025931,4.09360855,89.719,89.667,10.035]
[1772691026131,4.09360855,89.733,89.69,2.86083957]
[1772691027438,10.028,89.73,89.69,2.86083957]
[1772691027940,4.09360855,89.733,89.69,2.86083957]
[1772691028437,4.09360855,89.733,89.676,10.034]
[1772691028634,4.16538352,89.731,89.676,10.034]
[1772691029335,4.1830466,89.749,89.67,7.66299789]
[1772691029537,4.1830466,89.749,89.69,7.66299789]
[1772691029839,4.1830466,89.749,89.642,20.076]
[1772691029840,4.1830466,89.738,89.674,10.034]
[1772691030039,4.1830466,89.738,89.67,7.66299789]
[1772691030438,10.03,89.712,89.652,10.037]
[1772691030636,4.1830466,89.718,89.66,7.66299789]
[1772691031135,4.1830466,89.718,89.67,10.035]
[1772691031540,4.1830466,89.718,89.66,7.66299789]
[1772691031735,4.17587757,89.715,89.661,10.036]
[1772691032936,4.17587757,89.715,89.669,10.035]
[1772691033840,4.17214612,89.709,89.651,10.037]
[1772691034130,4.17214612,89.709,89.64,7.66299789]
[1772691034330,4.17214612,89.739,89.66,7.66299789]
[1772691034534,10.029,89.723,89.66,7.66299789]
[1772691034730,4.17214612,89.722,89.66,7.66299789]
[1772691036141,4.17214612,89.722,89.671,10.035]
[1772691036845,4.17214612,89.722,89.662,10.036]
[1772691037239,4.16311831,89.713,89.662,10.036]
[1772691037743,4.16311831,89.713,89.654,10.037]
[1772691038942,4.14108241,89.696,89.613,1.94031307]
[1772691039239,9.51621914,89.75,89.606,20.084]
[1772691039240,4.14108241,89.719,89.64,7.66299789]
[1772691039543,4.14108241,89.718,89.64,7.66299789]
[1772691040438,4.14108241,89.704,89.64,7.66299789]
[1772691041041,4.1749263,89.721,89.66,7.66299789]
[1772691041746,4.1749263,89.721,89.65,7.66299789]
[1772691042145,4.1749263,89.702,89.641,10.038]
[1772691042740,10.033,89.686,89.63,7.66299789]
[1772691042947,4.1749263,89.702,89.63,7.66299789]
[1772691043647,4.2535001,89.694,89.63,7.66299789]
[1772691044039,10.032,89.691,89.633,10.039]
[1772691044238,4.2535001,89.69,89.633,10.039]
[1772691044838,4.2535001,89.69,89.592,1.94070261]
[1772691045039,4.24311412,89.686,89.621,10.04]
[1772691045641,10.034,89.679,89.621,10.04]
[1772691045842,4.24311412,89.678,89.631,10.039]
[1772691046048,4.24311412,89.678,89.63,7.66299789]
[1772691046942,4.24311412,89.678,89.61,7.66299789]
[1772691047342,4.24311412,89.678,89.582,1.94091909]
[1772691047343,4.13613769,89.692,89.63,7.66299789]
[1772691047545,8.61480458,89.731,89.644,10.038]
[1772691047546,4.13613769,89.705,89.644,10.038]
[1772691048348,4.13613769,89.705,89.661,10.036]
[1772691048553,4.13613769,89.705,89.67,2.86225934]
[1772691049047,10.029,89.722,89.68,2.86225934]
[1772691049247,4.13172383,89.722,89.68,2.86225934]
[1772691049549,4.13172383,89.719,89.67,2.86225934]
[1772691050356,4.13172383,89.718,89.66,2.86225934]
[1772691051051,4.10680817,89.715,89.664,10.035]
[1772691051444,4.10680817,89.715,89.66,2.86225934]
[1772691052139,4.10680817,89.715,89.662,10.036]
[1772691052340,4.10680817,89.715,89.66,2.86225934]
[1772691052952,4.10557462,89.713,89.653,10.037]
[1772691053552,4.10557462,89.713,89.66,2.86225934]
[1772691054549,4.10557462,89.708,89.653,10.037]
[1772691055556,4.06436237,89.704,89.65,2.86225934]
[1772691055944,10.031,89.702,89.65,2.86225934]
[1772691056146,10.031,89.702,89.651,10.037]
[1772691057148,4.0627767,89.682,89.597,313.086]
[1772691057451,4.0627767,89.699,89.64,2.86225934]
[1772691057648,4.0627767,89.699,89.65,2.86225934]
[1772691058546,4.0627767,89.699,89.63,2.86225934]
[1772691058752,4.0627767,89.699,89.572,439.0]
[1772691058753,4.06898918,89.679,89.61,2.86225934]
[1772691059151,4.06898918,89.679,89.62,2.86225934]
[1772691059451,4.06898918,89.679,89.63,2.86225934]
[1772691059652,4.06898918,89.679,89.585,27.61712322]
[1772691059849,4.06898918,89.679,89.62,2.86225934]
[1772691060149,4.06898918,89.679,89.627,10.04]
[1772691061451,4.02903336,89.693,89.63,2.86225934]
[1772691061650,4.02903336,89.708,89.65,2.86225934]
[1772691062551,4.02903336,89.705,89.652,10.037]
[1772691065659,10.03,89.717,89.66,12.89825934]
[1772691066055,4.10250395,89.716,89.66,12.89825934]
[1772691066358,4.10250395,89.708,89.651,10.037]
[1772691067263,4.11708187,89.699,89.651,10.037]
[1772691067463,4.11708187,89.699,89.643,10.038]
[1772691068355,14.14908187,89.698,89.643,10.038]
[1772691069056,4.11708187,89.698,89.65,12.89925934]
[1772691069853,4.11708187,89.698,89.587,156.247]
[1772691069854,4.13850252,89.724,89.67,2.86225934]
[1772691070053,4.13850252,89.709,89.64,2.86225934]
[1772691070258,4.13850252,89.709,89.65,2.86225934]
[1772691070655,10.03,89.717,89.67,2.86225934]
[1772691070861,4.10184878,89.739,89.68,2.86225934]
[1772691071664,4.10184878,89.735,89.68,2.86225934]